fUST/lending_fUST_20240209
["ID","MTS","AMOUNT","RATE_DAILY","PERIOD"]
[313602772,1707456632217,-200.0032966,0.00024384,2]
[313602773,1707456632226,-153.0,0.00024384,2]
[313602774,1707456632235,-153.0,0.00024384,2]
[313602775,1707456632244,-159.9160562,0.00024384,2]
[313602776,1707456632254,-200.0,0.00024506,7]
[313602777,1707456632263,-3423.20972755,0.00024637,3]
[313602816,1707456637900,-3060.87027245,0.00024637,3]
[313602817,1707456637910,-7780.9,0.00024647,3]
[313602818,1707456637919,-5403.4,0.00024647,3]
[313602819,1707456637930,-155.47356463,0.00024655,2]
[313602820,1707456637939,-658.84783541,0.00024655,2]
[313602821,1707456637948,-155.81366943,0.00024656,2]
[313602822,1707456637957,-840.17468641,0.00024657,2]
[313602823,1707456637966,-496.66696298,0.00024657,2]
[313602825,1707456637976,-500.0,0.00024657,2]
[313602826,1707456637985,-500.0,0.00024657,2]
[313602827,1707456637995,-500.0,0.00024657,2]
[313602828,1707456638004,-500.0,0.00024657,2]
[313602829,1707456638013,-500.0,0.00024657,2]
[313602830,1707456638022,-500.0,0.00024657,2]
[313602831,1707456638032,-313.44266087,0.00024657,2]
[313602832,1707456638042,-500.0,0.00024657,2]
[313602833,1707456638052,-500.0,0.00024657,2]
[313602834,1707456638062,-506.10612655,0.00024657,2]
[313602835,1707456638071,-1067.62,0.00024657,2]
[313602836,1707456638081,-500.0,0.00024657,2]
[313602837,1707456638090,-500.0,0.00024657,2]
[313602838,1707456638099,-544.91364263,0.00024657,2]
[313602839,1707456638108,-500.0,0.00024657,2]
[313602840,1707456638117,-500.0,0.00024657,2]
[313602841,1707456638127,-340.24873437,0.00024657,2]
[313602842,1707456638136,-500.0,0.00024657,2]
[313602843,1707456638145,-590.11900371,0.00024657,2]
[313602844,1707456638154,-209.55516779,0.00024657,2]
[313602845,1707456638163,-500.0,0.00024657,2]
[313602846,1707456638172,-537.5135058,0.00024657,2]
[313602847,1707456638182,-1150.62,0.00024657,2]
[313602848,1707456638191,-500.0,0.00024657,2]
[313602849,1707456638201,-212.25005961,0.00024657,2]
[313602850,1707456638211,-500.0,0.00024657,2]
[313602851,1707456638220,-625.3385443,0.00024657,2]
[313602852,1707456638229,-505.31,0.00024657,2]
[313602853,1707456638238,-500.0,0.00024657,2]
[313602854,1707456638248,-300.0,0.00024657,2]
[313602855,1707456638257,-500.0,0.00024657,2]
[313602856,1707456638266,-500.0,0.00024657,2]
[313602857,1707456638275,-500.0,0.00024657,2]
[313602858,1707456638284,-500.0,0.00024657,2]
[313602859,1707456638293,-500.68922714,0.00024657,2]
[313602860,1707456638305,-500.0,0.00024657,2]
[313602861,1707456638314,-533.05470761,0.00024657,2]
[313602862,1707456638323,-565.81321405,0.00024657,2]
[313602863,1707456638334,-500.0,0.00024657,2]
[313602864,1707456638343,-171.86709562,0.00024657,2]
[313602865,1707456638352,-151.0,0.00024657,2]
[313602866,1707456638362,-151.0,0.00024657,2]
[313602867,1707456638371,-151.0,0.00024657,2]
[313602868,1707456638380,-151.0,0.00024657,2]
[313602869,1707456638389,-151.0,0.00024657,2]
[313602870,1707456638398,-151.0,0.00024657,2]
[313602871,1707456638407,-151.0,0.00024657,2]
[313602872,1707456638418,-151.0,0.00024657,2]
[313602873,1707456638428,-151.0,0.00024657,2]
[313602874,1707456638437,-243.896775,0.00024657,2]
[313602875,1707456638447,-420.37938433,0.00024657,2]
[313602876,1707456638457,-500.0,0.00024657,2]
[313602877,1707456638469,-500.0,0.00024657,2]
[313602878,1707456638481,-1381.86,0.00024657,2]
[313602879,1707456638491,-500.0,0.00024657,2]
[313602880,1707456638501,-500.0,0.00024657,2]
[313602881,1707456638510,-500.0,0.00024657,2]
[313602882,1707456638521,-500.0,0.00024657,2]
[313602883,1707456638530,-1000.0,0.00024657,2]
[313602884,1707456638540,-500.0,0.00024657,2]
[313602885,1707456638551,-981.62,0.00024657,2]
[313602886,1707456638560,-500.0,0.00024657,2]
[313602887,1707456638570,-617.31246537,0.00024657,2]
[313602888,1707456638581,-500.0,0.00024657,2]
[313602889,1707456638590,-500.0,0.00024657,2]
[313602890,1707456638601,-500.0,0.00024657,2]
[313602891,1707456638610,-324.75685214,0.00024657,2]
[313602892,1707456638620,-500.0,0.00024657,2]
[313602893,1707456638629,-151.0,0.00024657,2]
[313602894,1707456638639,-151.0,0.00024657,2]
[313602895,1707456638650,-151.0,0.00024657,2]
[313602896,1707456638659,-151.0,0.00024657,2]
[313602897,1707456638669,-151.0,0.00024657,2]
[313602898,1707456638679,-151.0,0.00024657,2]
[313602899,1707456638689,-151.0,0.00024657,2]
[313602900,1707456638699,-186.80947,0.00024657,2]
[313602901,1707456638708,-500.0,0.00024657,2]
[313602902,1707456638719,-500.0,0.00024657,2]
[313602903,1707456638728,-500.0,0.00024657,2]
[313602904,1707456638738,-534.29719,0.00024657,2]
[313602905,1707456638747,-500.0,0.00024657,2]
[313602906,1707456638756,-4386.4,0.00024657,2]
[313602907,1707456638766,-5272.39,0.00024657,2]
[313602908,1707456638776,-1949.26,0.00024657,2]
[313602909,1707456638785,-500.0,0.00024657,2]
[313602910,1707456638795,-1282.02,0.00024657,2]
[313602911,1707456638805,-500.0,0.00024657,2]
[313602912,1707456638814,-500.0,0.00024657,2]
[313602913,1707456638825,-628.55,0.00024657,2]
[313602914,1707456638836,-552.67,0.00024657,2]
[313602915,1707456638846,-500.0,0.00024657,2]
[313602916,1707456638856,-1430.25,0.00024657,2]
[313602917,1707456638866,-151.0,0.00024657,2]
[313602918,1707456638875,-1592.14,0.00024657,2]
[313602919,1707456638884,-500.0,0.00024657,2]
[313602920,1707456638894,-8799.83,0.00024657,2]
[313602921,1707456638903,-728.05,0.00024657,2]
[313602922,1707456638991,-1030.43,0.00024657,2]
[313602923,1707456639001,-554.55,0.00024657,2]
[313602924,1707456639010,-17073.82,0.00024657,2]
[313602925,1707456639020,-2396.86,0.00024657,2]
[313602926,1707456639029,-500.0,0.00024657,2]
[313602927,1707456639039,-1042.56,0.00024657,2]
[313602928,1707456639049,-500.0,0.00024657,2]
[313602929,1707456639059,-7172.17,0.00024657,2]
[313602930,1707456639070,-500.0,0.00024657,2]
[313602931,1707456639081,-500.0,0.00024657,2]
[313602932,1707456639092,-512.36071633,0.00024657,2]
[313602933,1707456639102,-500.0,0.00024657,2]
[313602934,1707456639113,-500.0,0.00024657,2]
[313602935,1707456639123,-500.0,0.00024657,2]
[313602936,1707456639133,-500.0,0.00024657,2]
[313602937,1707456639143,-500.0,0.00024657,2]
[313602938,1707456639153,-1272.69,0.00024657,2]
[313602939,1707456639163,-500.0,0.00024657,2]
[313602940,1707456639173,-500.0,0.00024657,2]
[313602941,1707456639182,-1694.28,0.00024657,2]
[313602942,1707456639191,-500.0,0.00024657,2]
[313602943,1707456639201,-500.0,0.00024657,2]
[313602944,1707456639210,-550.36878574,0.00024657,2]
[313602945,1707456639219,-500.0,0.00024657,2]
[313602946,1707456639228,-500.0,0.00024657,2]
[313602947,1707456639250,-500.0,0.00024657,2]
[313602948,1707456639260,-500.0,0.00024657,2]
[313602949,1707456639270,-500.0,0.00024657,2]
[313602950,1707456639280,-6055.01,0.00024657,2]
[313602951,1707456639290,-5647.91,0.00024657,2]
[313602952,1707456639300,-500.0,0.00024657,2]
[313602953,1707456639311,-561.26,0.00024657,2]
[313602954,1707456639321,-5199.16,0.00024657,2]
[313602955,1707456639332,-500.0,0.00024657,2]
[313602956,1707456639342,-200.0,0.00024657,2]
[313602957,1707456639351,-8900.34,0.00024657,2]
[313602958,1707456639361,-639.09337755,0.00024657,2]
[313602959,1707456639371,-2755.47722378,0.00024669,2]
[313602960,1707456639381,-632.95255982,0.00024725,2]
[313602961,1707456639391,-7017.52935967,0.000249,2]
[313602962,1707456639400,-683.74589582,0.00024918,2]
[313602963,1707456639410,-1500.0,0.00024918,3]
[313602964,1707456639420,-256.31305784,0.00024918,2]
[313602965,1707456639429,-290.00595844,0.00024918,2]
[313602966,1707456639439,-383.43926243,0.00024918,2]
[313602967,1707456639450,-553.49448561,0.00024918,2]
[313602968,1707456639459,-155.95112487,0.00024918,2]
[313602969,1707456639472,-644.98002426,0.00024918,2]
[313602970,1707456639482,-500.0,0.00024918,2]
[313602971,1707456639492,-500.0,0.00024918,2]
[313602972,1707456639503,-462.15033106,0.00024918,2]
[313602973,1707456639512,-612.4765612,0.00024918,2]
[313602974,1707456639523,-500.0,0.00024918,2]
[313602975,1707456639535,-500.0,0.00024918,2]
[313602976,1707456639547,-500.0,0.00024918,2]
[313602977,1707456639557,-500.0,0.00024918,2]
[313602978,1707456639566,-155.4053311,0.00024919,2]
[313602979,1707456639576,-298.11760842,0.00024919,2]
[313602980,1707456639587,-155.82383972,0.00024919,2]
[313602981,1707456639598,-325.58322958,0.00024919,2]
[313602982,1707456639609,-7718.15920944,0.00024919,2]
[313602983,1707456639620,-500.0,0.00024931,2]
[313602984,1707456639630,-500.0,0.00024931,2]
[313602985,1707456639642,-614.33565916,0.00024931,2]
[313602986,1707456639654,-546.97488722,0.00024931,2]
[313602987,1707456639665,-500.0,0.00024931,2]
[313602988,1707456639677,-1067.62,0.00024931,2]
[313602989,1707456639688,-500.0,0.00024931,2]
[313602990,1707456639699,-500.0,0.00024931,2]
[313602991,1707456639710,-366.20393899,0.00024931,2]
[313602992,1707456639720,-500.0,0.00024931,2]
[313602993,1707456639730,-500.0,0.00024931,2]
[313602994,1707456639740,-1150.62,0.00024931,2]
[313602995,1707456639749,-614.86457641,0.00024931,2]
[313602996,1707456639760,-505.88117629,0.00024931,2]
[313602997,1707456639769,-505.31,0.00024931,2]
[313602998,1707456639779,-500.0,0.00024931,2]
[313602999,1707456639788,-384.71549856,0.00024931,2]
[313603000,1707456639798,-500.0,0.00024931,2]
[313603001,1707456639807,-637.21206092,0.00024931,2]
[313603002,1707456639816,-611.79579839,0.00024931,2]
[313603003,1707456639826,-500.0,0.00024931,2]
[313603004,1707456639836,-500.0,0.00024931,2]
[313603005,1707456639846,-500.0,0.00024931,2]
[313603006,1707456639856,-500.0,0.00024931,2]
[313603008,1707456639865,-1381.86,0.00024931,2]
[313603010,1707456639874,-500.0,0.00024931,2]
[313603011,1707456639884,-321.3829439,0.00024931,2]
[313603012,1707456639894,-370.86420449,0.00024931,2]
[313603013,1707456639903,-500.0,0.00024931,2]
[313603014,1707456639913,-1000.0,0.00024931,2]
[313603015,1707456639923,-500.0,0.00024931,2]
[313603016,1707456639935,-981.62,0.00024931,2]
[313603017,1707456639946,-541.16772679,0.00024931,2]
[313603018,1707456639955,-500.0,0.00024931,2]
[313603019,1707456639965,-500.0,0.00024931,2]
[313603020,1707456639975,-500.0,0.00024931,2]
[313603021,1707456639985,-500.0,0.00024931,2]
[313603022,1707456639995,-500.0,0.00024931,2]
[313603023,1707456640005,-500.0,0.00024931,2]
[313603024,1707456640015,-500.0,0.00024931,2]
[313603025,1707456640025,-4386.4,0.00024931,2]
[313603026,1707456640034,-5272.39,0.00024931,2]
[313603027,1707456640044,-1949.26,0.00024931,2]
[313603028,1707456640054,-500.0,0.00024931,2]
[313603029,1707456640065,-1282.02,0.00024931,2]
[313603030,1707456640075,-500.0,0.00024931,2]
[313603031,1707456640087,-500.0,0.00024931,2]
[313603032,1707456640097,-628.55,0.00024931,2]
[313603033,1707456640106,-552.67,0.00024931,2]
[313603034,1707456640116,-500.0,0.00024931,2]
[313603035,1707456640127,-1430.25,0.00024931,2]
[313603036,1707456640137,-1592.14,0.00024931,2]
[313603037,1707456640147,-500.0,0.00024931,2]
[313603038,1707456640158,-8799.83,0.00024931,2]
[313603039,1707456640168,-728.05,0.00024931,2]
[313603040,1707456640178,-1030.43,0.00024931,2]
[313603041,1707456640188,-554.55,0.00024931,2]
[313603042,1707456640197,-17073.82,0.00024931,2]
[313603043,1707456640208,-2396.86,0.00024931,2]
[313603044,1707456640217,-500.0,0.00024931,2]
[313603045,1707456640226,-1042.56,0.00024931,2]
[313603046,1707456640236,-500.0,0.00024931,2]
[313603047,1707456640245,-7172.17,0.00024931,2]
[313603048,1707456640254,-500.0,0.00024931,2]
[313603049,1707456640263,-500.0,0.00024931,2]
[313603050,1707456640273,-500.0,0.00024931,2]
[313603051,1707456640282,-500.0,0.00024931,2]
[313603052,1707456640291,-500.0,0.00024931,2]
[313603053,1707456640301,-340.03540228,0.00024931,2]
[313603054,1707456640310,-500.0,0.00024931,2]
[313603055,1707456640319,-1272.69,0.00024931,2]
[313603056,1707456640328,-500.0,0.00024931,2]
[313603057,1707456640338,-500.0,0.00024931,2]
[313603058,1707456640348,-1694.28,0.00024931,2]
[313603059,1707456640357,-500.0,0.00024931,2]
[313603060,1707456640366,-500.0,0.00024931,2]
[313603061,1707456640376,-500.0,0.00024931,2]
[313603062,1707456640385,-500.0,0.00024931,2]
[313603063,1707456640395,-500.0,0.00024931,2]
[313603064,1707456640404,-500.0,0.00024931,2]
[313603065,1707456640414,-500.0,0.00024931,2]
[313603066,1707456640423,-6055.01,0.00024931,2]
[313603067,1707456640432,-5647.91,0.00024931,2]
[313603068,1707456640442,-500.0,0.00024931,2]
[313603069,1707456640451,-561.26,0.00024931,2]
[313603070,1707456640461,-5199.16,0.00024931,2]
[313603071,1707456640473,-500.0,0.00024931,2]
[313603072,1707456640482,-8900.34,0.00024931,2]
[313603073,1707456640491,-496.40157201,0.0002496,5]
[313603074,1707456640500,-335.67869431,0.00025,2]
[313603075,1707456640511,-5095.5365824,0.00025,10]
[313603076,1707456640520,-7408.73547856,0.00025,2]
[313603077,1707456640530,-3189.76992832,0.00025203,2]
[313603078,1707456640539,-430.68304835,0.00025204,2]
[313603079,1707456640548,-155.55730164,0.00025204,2]
[313603080,1707456640557,-500.0,0.00025205,2]
[313603081,1707456640567,-500.0,0.00025205,2]
[313603082,1707456640577,-1067.62,0.00025205,2]
[313603083,1707456640587,-434.54626728,0.00025205,2]
[313603084,1707456640597,-500.0,0.00025205,2]
[313603085,1707456640606,-500.0,0.00025205,2]
[313603086,1707456640616,-500.0,0.00025205,2]
[313603087,1707456640627,-1150.62,0.00025205,2]
[313603088,1707456640637,-505.31,0.00025205,2]
[313603089,1707456640649,-500.0,0.00025205,2]
[313603090,1707456640659,-500.0,0.00025205,2]
[313603091,1707456640669,-500.0,0.00025205,2]
[313603092,1707456640678,-500.0,0.00025205,2]
[313603093,1707456640687,-500.0,0.00025205,2]
[313603094,1707456640697,-500.0,0.00025205,2]
[313603095,1707456640708,-1381.86,0.00025205,2]
[313603096,1707456640719,-162.14713256,0.00025205,2]
[313603097,1707456640728,-518.80850765,0.00025205,2]
[313603098,1707456640739,-1000.0,0.00025205,2]
[313603099,1707456640748,-500.0,0.00025205,2]
[313603100,1707456640759,-981.62,0.00025205,2]
[313603101,1707456640769,-500.0,0.00025205,2]
[313603102,1707456640778,-500.0,0.00025205,2]
[313603103,1707456640788,-567.25455487,0.00025205,2]
[313603105,1707456640881,-500.0,0.00025205,2]
[313603106,1707456640891,-500.0,0.00025205,2]
[313603107,1707456640901,-500.0,0.00025205,2]
[313603108,1707456640911,-500.0,0.00025205,2]
[313603109,1707456640920,-4386.4,0.00025205,2]
[313603110,1707456640929,-5272.39,0.00025205,2]
[313603111,1707456640938,-1949.26,0.00025205,2]
[313603112,1707456640947,-1282.02,0.00025205,2]
[313603113,1707456640957,-500.0,0.00025205,2]
[313603114,1707456640966,-628.55,0.00025205,2]
[313603115,1707456640975,-552.67,0.00025205,2]
[313603116,1707456640985,-500.0,0.00025205,2]
[313603117,1707456640994,-1430.25,0.00025205,2]
[313603118,1707456641004,-1592.14,0.00025205,2]
[313603119,1707456641013,-500.0,0.00025205,2]
[313603120,1707456641022,-8799.83,0.00025205,2]
[313603121,1707456641035,-728.05,0.00025205,2]
[313603122,1707456641044,-1030.43,0.00025205,2]
[313603123,1707456641054,-554.55,0.00025205,2]
[313603124,1707456641063,-17073.82,0.00025205,2]
[313603125,1707456641073,-2396.86,0.00025205,2]
[313603126,1707456641082,-500.0,0.00025205,2]
[313603127,1707456641092,-1042.56,0.00025205,2]
[313603128,1707456641102,-500.0,0.00025205,2]
[313603129,1707456641111,-7172.17,0.00025205,2]
[313603131,1707456641121,-500.0,0.00025205,2]
[313603132,1707456641131,-500.0,0.00025205,2]
[313603134,1707456641140,-500.0,0.00025205,2]
[313603136,1707456641150,-500.0,0.00025205,2]
[313603138,1707456641160,-500.0,0.00025205,2]
[313603140,1707456641169,-500.0,0.00025205,2]
[313603141,1707456641178,-1272.69,0.00025205,2]
[313603142,1707456641187,-500.0,0.00025205,2]
[313603143,1707456641196,-500.0,0.00025205,2]
[313603144,1707456641205,-1694.28,0.00025205,2]
[313603146,1707456641214,-500.0,0.00025205,2]
[313603147,1707456641223,-500.0,0.00025205,2]
[313603148,1707456641233,-534.81741702,0.00025205,2]
[313603149,1707456641242,-500.0,0.00025205,2]
[313603150,1707456641251,-500.0,0.00025205,2]
[313603151,1707456641260,-500.0,0.00025205,2]
[313603152,1707456641269,-500.0,0.00025205,2]
[313603153,1707456641279,-6055.01,0.00025205,2]
[313603154,1707456641288,-5647.91,0.00025205,2]
[313603155,1707456641297,-500.0,0.00025205,2]
[313603156,1707456641306,-561.26,0.00025205,2]
[313603157,1707456641316,-5199.16,0.00025205,2]
[313603158,1707456641325,-500.0,0.00025205,2]
[313603159,1707456641335,-8900.34,0.00025205,2]
[313603160,1707456641343,-153.0,0.00025205,2]
[313603161,1707456641353,-153.0,0.00025205,2]
[313603162,1707456641362,-153.0,0.00025205,2]
[313603163,1707456641382,-200.0032966,0.00025205,2]
[313603164,1707456641393,-308.9126687,0.00025205,2]
[313603165,1707456641403,-153.0,0.00025205,2]
[313603166,1707456641413,-153.0,0.00025205,2]
[313603167,1707456641423,-153.0,0.00025205,2]
[313603168,1707456641433,-200.0032966,0.00025205,2]
[313603169,1707456641443,-153.0,0.00025205,2]
[313603170,1707456641453,-153.0,0.00025205,2]
[313603171,1707456641463,-153.0,0.00025205,2]
[313603172,1707456641476,-200.0032966,0.00025205,2]
[313603173,1707456641486,-153.0,0.00025205,2]
[313603174,1707456641496,-153.0,0.00025205,2]
[313603175,1707456641506,-153.0,0.00025205,2]
[313603176,1707456641520,-200.0032966,0.00025205,2]
[313603177,1707456641529,-153.0,0.00025205,2]
[313603178,1707456641541,-153.0,0.00025205,2]
[313603179,1707456641553,-153.0,0.00025205,2]
[313603180,1707456641563,-153.0,0.00025205,2]
[313603181,1707456641574,-199.3275758,0.00025205,2]
[313603182,1707456641584,-153.0,0.00025205,2]
[313603183,1707456641594,-153.0,0.00025205,2]
[313603184,1707456641603,-153.0,0.00025205,2]
[313603185,1707456641613,-153.0,0.00025205,2]
[313603186,1707456641623,-21141.89197977,0.00025379,2]
[313603187,1707456641635,-96562.59889982,0.0002538,2]
[313603188,1707456642132,-419.266,0.00024657,2]
[313603290,1707456645798,-1032.36645246,0.00024656,3]
[313603292,1707456645807,-368.02541269,0.00024657,2]
[313603294,1707456645819,-476.31344637,0.00024657,2]
[313603299,1707456645853,-2884.28514094,0.00024657,2]
[313603301,1707456645863,-919.93547376,0.00024931,2]
[313603375,1707456852680,-3456.998163,0.0002122,2]
[313603376,1707456852702,-690.22217903,0.00023279,2]
[313603377,1707456852723,-416.63989111,0.0002328,2]
[313603378,1707456852745,-4502.83,0.00024647,3]
[313603379,1707456852766,-592.9693191,0.00024656,2]
[313603380,1707456852791,-3838.1,0.00024657,2]
[313603381,1707456852814,-549.98,0.00024657,2]
[313603382,1707456852837,-4613.34,0.00024657,2]
[313603383,1707456852858,-500.0,0.00024657,2]
[313603384,1707456852884,-1251.47,0.00024657,2]
[313603385,1707456852905,-1121.77,0.00024657,2]
[313603386,1707456852930,-500.0,0.00024657,2]
[313603387,1707456852951,-500.0,0.00024657,2]
[313603388,1707456852972,-265.52371736,0.00024657,2]
[313603389,1707456852996,-500.0,0.00024657,2]
[313603390,1707456853019,-7699.85,0.00024657,2]
[313603391,1707456853041,-10020.3067304,0.00024657,2]
[313603644,1707457838031,-470.87519603,0.00022999,2]
[313603645,1707457838086,-219.346983,0.00022999,2]
[313603646,1707457838096,-14583.0,0.00023,2]
[313603647,1707457838105,-277.7599274,0.0002328,2]
[313603648,1707457838114,-4580.459866,0.00023488,2]
[313603649,1707457838123,-592.9693191,0.00024646,2]
[313603650,1707457838132,-3752.36,0.00024647,3]
[313603651,1707457838141,-3126.97,0.00024647,3]
[313603653,1707457838150,-2605.81,0.00024647,3]
[313603655,1707457838158,-300.0,0.00024657,2]
[313603657,1707457838167,-1832.17488523,0.00024657,2]
[313603658,1707457838177,-155.12099438,0.00024657,2]
[313603659,1707457838186,-155.12099438,0.00024657,2]
[313603660,1707457838195,-2212.60402565,0.00024657,2]
[313603661,1707457838204,-155.12409928,0.00024657,2]
[313603662,1707457838212,-155.12409928,0.00024657,2]
[313603663,1707457838221,-500.0,0.00024657,2]
[313603664,1707457838230,-356.67160798,0.00024657,2]
[313603665,1707457838239,-500.0,0.00024657,2]
[313603666,1707457838248,-500.0,0.00024657,2]
[313603667,1707457838257,-500.0,0.00024657,2]
[313603668,1707457838266,-905.66,0.00024657,2]
[313603669,1707457838275,-500.0,0.00024657,2]
[313603670,1707457838284,-388.42193274,0.00024657,2]
[313603671,1707457838293,-500.0,0.00024657,2]
[313603672,1707457838302,-500.0,0.00024657,2]
[313603673,1707457838311,-500.0,0.00024657,2]
[313603674,1707457838320,-500.0,0.00024657,2]
[313603675,1707457838330,-500.0,0.00024657,2]
[313603676,1707457838339,-500.0,0.00024657,2]
[313603677,1707457838348,-166.11282321,0.00024657,2]
[313603678,1707457838357,-205.70640424,0.00024657,2]
[313603679,1707457838366,-1209.13,0.00024657,2]
[313603680,1707457838375,-500.0,0.00024657,2]
[313603681,1707457838384,-500.0,0.00024657,2]
[313603682,1707457838393,-1000.0,0.00024657,2]
[313603683,1707457838402,-500.0,0.00024657,2]
[313603684,1707457838412,-500.0,0.00024657,2]
[313603685,1707457838422,-382.52092585,0.00024657,2]
[313603686,1707457838431,-500.0,0.00024657,2]
[313603687,1707457838440,-250.85068474,0.00024657,2]
[313603688,1707457838449,-333.75951289,0.00024657,2]
[313603689,1707457838458,-3678.18,0.00024657,2]
[313603690,1707457838468,-4421.12,0.00024657,2]
[313603691,1707457838477,-934.17,0.00024657,2]
[313603692,1707457838486,-1075.03,0.00024657,2]
[313603693,1707457838496,-500.0,0.00024657,2]
[313603694,1707457838505,-527.07,0.00024657,2]
[313603695,1707457838514,-1199.33,0.00024657,2]
[313603696,1707457838524,-301.82944734,0.00024657,2]
[313603697,1707457838533,-7379.03,0.00024657,2]
[313603698,1707457838542,-637.05,0.00024657,2]
[313603699,1707457838551,-14522.08,0.00024657,2]
[313603700,1707457838560,-1393.13,0.00024657,2]
[313603701,1707457838569,-500.0,0.00024657,2]
[313603702,1707457838579,-6275.65,0.00024657,2]
[313603703,1707457838588,-500.0,0.00024657,2]
[313603704,1707457838597,-912.24,0.00024657,2]
[313603705,1707457838607,-901.63,0.00024657,2]
[313603706,1707457838617,-500.0,0.00024657,2]
[313603707,1707457838626,-2097.25,0.00024657,2]
[313603708,1707457838636,-449.01444786,0.00024657,2]
[313603709,1707457838645,-1006.79,0.00024657,2]
[313603710,1707457838654,-500.0,0.00024657,2]
[313603711,1707457838664,-500.0,0.00024657,2]
[313603712,1707457838673,-1113.6,0.00024657,2]
[313603713,1707457838683,-500.0,0.00024657,2]
[313603714,1707457838693,-500.0,0.00024657,2]
[313603715,1707457838702,-500.0,0.00024657,2]
[313603716,1707457838712,-500.0,0.00024657,2]
[313603717,1707457838721,-1482.49,0.00024657,2]
[313603718,1707457838730,-500.0,0.00024657,2]
[313603719,1707457838745,-500.0,0.00024657,2]
[313603720,1707457838758,-500.0,0.00024657,2]
[313603721,1707457838771,-5298.14,0.00024657,2]
[313603722,1707457838784,-500.0,0.00024657,2]
[313603723,1707457838799,-4941.92,0.00024657,2]
[313603724,1707457838811,-500.0,0.00024657,2]
[313603725,1707457838824,-500.0,0.00024657,2]
[313603726,1707457838837,-500.0,0.00024657,2]
[313603727,1707457838850,-4549.27,0.00024657,2]
[313603728,1707457838863,-500.0,0.00024657,2]
[313603729,1707457838876,-7787.8,0.00024657,2]
[313603730,1707457838889,-1705.61,0.00024657,2]
[313603731,1707457838899,-500.0,0.00024657,2]
[313603732,1707457838909,-500.0,0.00024657,2]
[313603733,1707457838923,-3936.73,0.00024657,2]
[313603734,1707457838935,-4039.14093532,0.00024917,2]
[313603735,1707457838947,-173.58295354,0.0002493,2]
[313603736,1707457838960,-500.0,0.0002493,2]
[313603737,1707457838971,-500.0,0.0002493,2]
[313603738,1707457838982,-500.0,0.0002493,2]
[313603739,1707457838995,-500.0,0.0002493,2]
[313603740,1707457839007,-500.0,0.0002493,2]
[313603741,1707457839017,-500.0,0.0002493,2]
[313603742,1707457839029,-500.0,0.0002493,2]
[313603743,1707457839043,-70.21659171,0.0002493,2]
[313603744,1707457839190,-429.78340829,0.0002493,2]
[313603745,1707457839201,-500.0,0.0002493,2]
[313603746,1707457839211,-350.0,0.0002493,2]
[313603747,1707457839221,-500.0,0.0002493,2]
[313603748,1707457839233,-500.0,0.0002493,2]
[313603749,1707457839243,-195.64275243,0.0002493,2]
[313603750,1707457839255,-500.0,0.0002493,2]
[313603751,1707457839267,-500.0,0.0002493,2]
[313603752,1707457839279,-500.0,0.0002493,2]
[313603753,1707457839290,-500.0,0.0002493,2]
[313603754,1707457839300,-500.0,0.0002493,2]
[313603755,1707457839311,-570.50022518,0.0002493,2]